bitfinex-derivatives/quotes_SOLF0:USTF0_20241217
["timestamp","ask_amount","ask_price","bid_price","bid_amount"]
[1734449601354,3.84,218.61,218.46,19.48092982]
[1734449601655,3.84,218.61,218.47,3.84]
[1734449602050,24.08512982,218.64,218.47,3.84]
[1734449602352,24.08512982,218.64,218.52,2.2879]
[1734449602353,2.2874,218.58,218.52,2.2879]
[1734449602659,3.84,218.71,218.54,19.48092982]
[1734449602956,42.73166619,218.76,218.55,8.4647]
[1734449602957,0.67898608,218.7,218.55,8.4647]
[1734449603258,5.50176277,218.71,218.58,19.48092982]
[1734449603845,4.6186,218.74,218.58,19.48092982]
[1734449604051,1.5167,218.74,218.58,19.48092982]
[1734449604256,2.2862,218.7,218.64,2.2867]
[1734449604553,7.11665245,218.74,218.58,19.48092982]
[1734449604751,2.2861,218.71,218.61,3.84]
[1734449604962,7.11665245,218.74,218.61,3.84]
[1734449605252,7.11665245,218.74,218.56,3.84]
[1734449605450,0.67877303,218.73,218.56,3.84]
[1734449605657,0.67877303,218.73,218.58,19.48092982]
[1734449606050,7.11665245,218.74,218.58,19.48092982]
[1734449606752,2.2864,218.67,218.58,19.48092982]
[1734449607051,5.59995245,218.74,218.58,19.48092982]
[1734449607657,2.2863,218.69,218.58,19.48092982]
[1734449607859,5.59995245,218.74,218.58,19.48092982]
[1734449608351,5.59995245,218.74,218.63,2.2867]
[1734449608352,2.2863,218.68,218.63,2.2867]
[1734449608559,19.48092982,218.73,218.55,4.6247]
[1734449608755,3.84,218.72,218.56,3.84]
[1734449608952,2.2864,218.68,218.56,6.1274]
[1734449609155,1.4802,218.73,218.58,19.48092982]
[1734449609359,5.59995245,218.74,218.58,19.48092982]
[1734449609952,2.286,218.71,218.62,19.48092982]
[1734449610151,20.96112982,218.83,218.66,19.48092982]
[1734449610352,1.4802,218.83,218.67,5.3977]
[1734449610554,1.4802,218.83,218.7,19.48092982]
[1734449610756,0.67819397,218.82,218.67,8.523]
[1734449610962,10.07435877,218.82,218.67,4.683]
[1734449611158,9.3961648,218.82,218.67,4.683]
[1734449611358,10.07418107,218.82,218.67,4.683]
[1734449611659,2.286,218.71,218.67,4.683]
[1734449611857,2.286,218.71,218.57,19.48092982]
[1734449611858,19.48092982,218.79,218.61,3.82]
[1734449612159,2.2865,218.66,218.61,3.82]
[1734449612464,9.3961648,218.82,218.61,3.82]
[1734449612465,0.67860772,218.78,218.61,3.82]
[1734449612658,9.3961648,218.82,218.68,2.2862]
[1734449612858,9.3961648,218.82,218.68,3.82]
[1734449613054,0.67877732,218.81,218.68,3.82]
[1734449613666,2.2861,218.7,218.68,3.82]
[1734449613864,19.48092982,218.79,218.68,3.82]
[1734449614060,19.48092982,218.79,218.63,3.82]
[1734449614266,2.2859,218.72,218.66,2.2865]
[1734449614467,0.67849236,218.78,218.63,3.82]
[1734449614660,0.67849236,218.78,218.58,4.6135]
[1734449614856,19.48092982,218.75,218.59,2.2872]
[1734449615064,1.35700548,218.78,218.58,1.5577]
[1734449615065,19.48092982,218.71,218.58,1.5577]
[1734449615264,1.4743,218.7,218.58,1.5577]
[1734449615461,2.2871,218.61,218.58,1.5577]
[1734449615760,1.4743,218.7,218.58,1.5577]
[1734449615965,0.6783336,218.69,218.58,1.5577]
[1734449616170,1.4743,218.7,218.58,1.5577]
[1734449616564,2.2869,218.62,218.58,1.5577]
[1734449616769,6.92205943,218.7,218.58,1.5577]
[1734449617168,5.44775943,218.7,218.58,1.5577]
[1734449617368,1.4514,218.77,218.6,19.48092982]
[1734449617671,0.67849236,218.78,218.68,19.48092982]
[1734449617971,0.67849236,218.78,218.69,3.82]
[1734449618171,2.2861,218.7,218.69,3.82]
[1734449618376,0.67849236,218.78,218.64,3.66]
[1734449619074,1.4514,218.77,218.64,3.66]
[1734449619774,2.2863,218.68,218.64,3.66]
[1734449620076,1.4514,218.77,218.64,3.66]
[1734449620275,0.67923658,218.76,218.64,3.66]
[1734449620473,2.2866,218.65,218.64,3.66]
[1734449620877,2.2869,218.63,218.61,3.0406]
[1734449621172,3.66,218.74,218.61,1.4557]
[1734449621370,0.67923554,218.73,218.61,1.4557]
[1734449621575,2.2868,218.64,218.61,1.4557]
[1734449622372,1.5165,218.76,218.61,1.4557]
[1734449622573,3.66,218.78,218.63,19.48092982]
[1734449622780,20.96652982,218.83,218.67,19.48092982]
[1734449623076,1.4856,218.83,218.68,3.66]
[1734449623277,1.467,218.84,218.68,5.2152]
[1734449623572,3.66,218.86,218.68,1.5552]
[1734449623777,0.679058,218.85,218.69,3.66]
[1734449624169,5.51747198,218.81,218.68,1.5552]
[1734449624372,5.51747198,218.81,218.62,3.66]
[1734449624373,32.26167815,218.8,218.62,3.66]
[1734449624572,0.6787094,218.79,218.61,31.58262015]
[1734449624777,3.66,218.78,218.61,31.58262015]
[1734449624974,3.66,218.78,218.62,3.66]
[1734449625279,1.4856,218.79,218.62,3.66]
[1734449625280,31.58262015,218.76,218.62,3.66]
[1734449625469,0.67850397,218.75,218.59,3.0114]
[1734449625675,3.73860397,218.75,218.59,3.0114]
[1734449625975,3.0601,218.75,218.59,3.0114]
[1734449626177,2.2866,218.65,218.59,3.0114]
[1734449626479,3.0601,218.75,218.59,1.4562]
[1734449626678,2.2869,218.63,218.59,1.4562]
[1734449626880,31.58262015,218.72,218.58,1.5577]
[1734449627070,31.58262015,218.68,218.54,1.5337]
[1734449627276,2.2878,218.54,218.49,31.58262015]
[1734449627471,35.24262015,218.64,218.47,6.7256]
[1734449627675,1.5037,218.63,218.47,6.7256]
[1734449627882,0.67790712,218.62,218.47,6.7256]
[1734449628078,3.019,218.63,218.47,6.7256]
[1734449628276,0.67781833,218.62,218.47,6.7256]
[1734449628474,3.019,218.63,218.47,6.7256]
[1734449628675,6.679,218.63,218.47,6.7256]
[1734449628970,3.019,218.63,218.49,31.58262015]
[1734449629176,1.5037,218.63,218.49,31.58262015]
[1734449629377,2.2871,218.61,218.53,2.2878]
[1734449629569,1.5037,218.63,218.53,2.2878]
[1734449629775,5.58359273,218.63,218.49,31.58262015]
[1734449629976,5.58359273,218.63,218.47,6.7256]
[1734449630183,5.58359273,218.63,218.5,31.58262015]
[1734449630375,2.287,218.61,218.55,2.2876]
[1734449630575,5.44955135,218.65,218.5,31.58262015]
[1734449631975,2.2872,218.6,218.51,2.2881]
[1734449632170,5.44955135,218.65,218.47,6.7256]
[1734449632171,31.58262015,218.64,218.47,6.7256]
[1734449632376,31.58262015,218.64,218.47,3.0656]
[1734449632775,35.24262015,218.64,218.47,3.0656]
[1734449632974,2.287,218.62,218.55,2.2876]
[1734449633178,3.66,218.64,218.51,3.66]
[1734449633379,5.44955135,218.65,218.51,3.66]
[1734449633577,31.58262015,218.68,218.57,2.2873]
[1734449633578,2.2869,218.63,218.57,2.2873]
[1734449633780,31.58262015,218.68,218.51,3.66]
[1734449634078,2.2877,218.55,218.5,2.2881]
[1734449634580,35.24262015,218.63,218.47,3.0656]
[1734449634784,2.2882,218.5,218.47,3.0656]
[1734449634982,31.58262015,218.59,218.42,3.66]
[1734449635184,2.2884,218.48,218.42,2.289]
[1734449635377,3.1138,218.58,218.39,5.2426]
[1734449635378,3.66,218.55,218.39,5.2426]
[1734449635578,31.58262015,218.55,218.39,1.5826]
[1734449635782,3.66,218.54,218.41,2.289]
[1734449636285,31.58262015,218.55,218.39,1.5826]
[1734449636677,2.2882,218.5,218.44,2.2887]
[1734449636880,3.66,218.57,218.39,1.5826]
[1734449637280,2.2882,218.5,218.39,1.5826]
[1734449637686,3.66,218.57,218.42,31.58262015]
[1734449637878,5.39238766,218.56,218.44,2.2887]
[1734449638085,5.39238766,218.56,218.43,1.4636]
[1734449638485,31.58262015,218.55,218.43,1.4636]
[1734449638688,31.58262015,218.55,218.39,1.5826]
[1734449639585,2.2882,218.5,218.39,1.5826]
[1734449639784,9.05238766,218.56,218.39,1.5826]
[1734449639980,0.67542908,218.55,218.39,1.5826]
[1734449640189,0.67542908,218.55,218.41,2.289]
[1734449640384,32.25804923,218.55,218.39,1.5826]
[1734449640681,31.58262015,218.55,218.39,1.5826]
[1734449640883,31.58262015,218.55,218.39,5.2626]
[1734449641091,2.2882,218.5,218.45,2.2887]
[1734449641388,31.58262015,218.55,218.39,1.5826]
[1734449641687,3.1138,218.58,218.42,31.58262015]
[1734449641994,1.4881,218.62,218.46,31.58262015]
[1734449642191,2.2877,218.55,218.49,2.2883]
[1734449642587,5.36868131,218.59,218.49,2.2883]
[1734449642788,2.2877,218.55,218.5,2.2881]
[1734449642990,1.4881,218.62,218.47,3.68]
[1734449643184,2.288,218.52,218.47,3.68]
[1734449643498,35.26262015,218.59,218.42,31.58262015]
[1734449643687,0.6758852,218.58,218.4,1.4981]
[1734449644092,0.6758852,218.58,218.4,20.97707391]
[1734449644596,2.288,218.52,218.4,20.97707391]
[1734449645591,2.2879,218.53,218.47,2.2884]
[1734449645787,2.2879,218.53,218.46,3.68]
[1734449645989,2.2879,218.53,218.4,20.97707391]
[1734449645990,19.47897391,218.59,218.45,3.68]
[1734449646294,5.46153845,218.6,218.45,3.68]
[1734449646688,19.47897391,218.59,218.45,3.68]
[1734449646895,19.47897391,218.55,218.4,1.4981]
[1734449647194,2.2889,218.43,218.4,1.4981]
[1734449647396,19.47897391,218.51,218.4,1.4981]
[1734449647595,5.1761,218.54,218.4,1.4981]
[1734449647797,0.67527058,218.53,218.4,1.4981]
[1734449648000,2.24607058,218.53,218.4,1.4981]
[1734449648191,0.67527058,218.52,218.4,1.4981]
[1734449648393,1.5708,218.53,218.4,1.4981]
[1734449648890,1.4961,218.54,218.4,1.4981]
[1734449649299,19.47897391,218.59,218.4,1.4981]
[1734449649508,9.06153845,218.6,218.4,1.4981]
[1734449649509,19.47897391,218.55,218.4,1.4981]
[1734449650194,0.67504113,218.54,218.4,1.4981]
[1734449650398,19.47897391,218.55,218.4,1.4981]
[1734449650705,2.2886,218.46,218.41,2.2891]
[1734449651092,1.6086,218.58,218.4,1.4981]
[1734449651292,0.67528225,218.57,218.4,1.4981]
[1734449651600,1.6086,218.58,218.46,2.2885]
[1734449651601,2.2881,218.51,218.46,2.2885]
[1734449651795,1.6086,218.58,218.44,3.6]
[1734449651993,1.5756,218.61,218.44,3.6]
[1734449652194,21.01447391,218.67,218.54,2.2877]
[1734449652492,5.51762659,218.64,218.52,3.6]
[1734449652697,5.51762659,218.64,218.53,3.6]
[1734449652898,5.51762659,218.64,218.46,19.47897391]
[1734449652899,0.67635476,218.63,218.54,3.6]
[1734449653091,19.47897391,218.63,218.46,19.47897391]
[1734449653292,2.2882,218.5,218.47,3.6]
[1734449653495,19.47897391,218.59,218.47,3.6]
[1734449653894,5.1974,218.62,218.5,2.2881]
[1734449654098,0.67620824,218.61,218.47,3.6]
[1734449654995,5.1974,218.62,218.47,3.6]
[1734449655493,5.51762659,218.64,218.53,2.2879]
[1734449656000,5.51762659,218.64,218.48,1.468]
[1734449656001,5.51762659,218.64,218.49,1.6106]
[1734449657200,0.67612175,218.63,218.49,1.6106]
[1734449657596,0.67612175,218.63,218.53,2.2878]
[1734449657792,5.51762659,218.64,218.49,1.6106]
[1734449658198,2.2874,218.58,218.53,2.2878]
[1734449658393,5.51762659,218.64,218.49,1.6106]
[1734449658596,19.47897391,218.6,218.49,1.6106]
[1734449658800,19.47897391,218.56,218.41,1.6088]
[1734449659010,19.47897391,218.52,218.36,1.4566]
[1734449659302,19.47897391,218.52,218.35,19.47897391]
[1734449659303,2.2894,218.39,218.35,1.5478]
[1734449659502,19.47897391,218.48,218.35,1.5478]
[1734449659896,2.289,218.43,218.37,2.2895]
[1734449660098,19.47897391,218.51,218.35,1.5478]
[1734449660294,0.67617463,218.5,218.35,1.5478]
[1734449660497,0.67617463,218.5,218.37,2.2895]
[1734449660699,0.67617463,218.49,218.35,21.02677391]
[1734449660996,2.2883,218.49,218.41,2.2891]
[1734449661303,5.42632789,218.53,218.42,3.6]
[1734449661504,4.593,218.55,218.42,3.6]
[1734449661704,0.67660925,218.54,218.42,3.6]
[1734449662097,4.593,218.55,218.42,3.6]
[1734449662502,4.593,218.55,218.43,19.47897391]
[1734449662704,3.0317,218.55,218.43,19.47897391]
[1734449663011,2.2881,218.52,218.46,2.2886]
[1734449663406,3.6,218.59,218.47,19.47897391]
[1734449663701,19.47897391,218.65,218.47,19.47897391]
[1734449663702,2.2877,218.55,218.47,19.47897391]
[1734449664007,2.2877,218.55,218.48,1.4605]
[1734449664202,2.2877,218.55,218.49,3.6]
[1734449664403,3.1287,218.63,218.51,2.288]
[1734449664603,3.1287,218.63,218.49,3.6]
[1734449664901,2.2872,218.59,218.53,2.2878]
[1734449665201,3.1287,218.63,218.49,3.6]
[1734449666306,1.4823,218.66,218.54,19.47897391]
[1734449666504,2.2865,218.66,218.58,19.47897391]
[1734449666712,3.0543,218.73,218.59,3.6]
[1734449666713,1.6081,218.72,218.59,3.6]
[1734449666911,5.4676799,218.71,218.59,3.6]
[1734449667113,2.2866,218.66,218.59,3.6]
[1734449667309,5.4676799,218.71,218.59,3.6]
[1734449667607,1.5431,218.76,218.62,19.47897391]
[1734449667806,1.5431,218.76,218.66,19.47897391]
[1734449667807,0.67614394,218.75,218.66,19.47897391]
[1734449668009,0.67614394,218.75,218.67,3.6]
[1734449668208,1.5431,218.81,218.71,2.286]
[1734449668412,0.67629125,218.8,218.71,2.286]
[1734449668610,1.5431,218.81,218.7,19.47897391]
[1734449668911,7.15967746,218.81,218.67,3.6]
[1734449669105,0.67585786,218.8,218.67,3.6]
[1734449669303,2.2863,218.69,218.67,3.6]
[1734449669707,3.6,218.8,218.67,3.6]
[1734449670205,20.15465238,218.79,218.63,1.5717]
[1734449670407,0.67567847,218.78,218.63,3.6]
[1734449670607,2.2865,218.67,218.6,9.34235261]
[1734449670807,2.2865,218.67,218.6,7.78895261]
[1734449671610,19.47897391,218.79,218.6,5.50185261]
[1734449671813,0.6756959,218.78,218.6,5.50185261]
[1734449672309,3.6,218.78,218.6,5.50185261]
[1734449672617,0.67584805,218.77,218.6,5.50185261]
[1734449672811,2.2863,218.68,218.62,2.2868]
[1734449673006,3.6,218.78,218.62,2.2868]
[1734449673309,3.6,218.78,218.62,19.47897391]
[1734449673310,2.2857,218.74,218.62,19.47897391]
[1734449673511,7.15967746,218.81,218.7,19.47897391]
[1734449673718,3.6,218.88,218.71,3.6]
[1734449673907,2.2851,218.8,218.74,2.2856]
[1734449674717,5.42668862,218.85,218.78,19.47897391]
[1734449674912,5.42668862,218.85,218.79,3.6]
[1734449675116,5.42668862,218.85,218.82,19.47897391]
[1734449675316,4.589,218.97,218.82,19.47897391]
[1734449675617,0.6765673,218.96,218.86,19.47897391]
[1734449675811,2.2831,218.99,218.9,19.47897391]
[1734449676011,1.5917,219.03,218.93,31.50506791]
[1734449676321,2.283,219.0,218.93,3.6]
[1734449676509,6.95193209,219.03,218.93,3.6]
[1734449676714,1.4981,219.09,218.97,31.50506791]
[1734449676915,0.67666844,219.08,218.97,31.50506791]
[1734449677118,2.2825,219.04,218.97,33.78826791]
[1734449677315,5.56268098,219.07,218.97,31.50506791]
[1734449677619,0.67659059,219.06,218.93,3.6]
[1734449678114,2.2827,219.03,218.93,3.6]
[1734449678309,5.56268098,219.07,218.93,35.10506791]
[1734449678509,0.67645509,219.06,218.93,3.6]
[1734449678923,31.50506791,219.03,218.85,31.50506791]
[1734449679123,1.5636,219.02,218.85,3.54]
[1734449679416,1.5636,219.02,218.85,5.8245]
[1734449679617,1.5636,219.02,218.85,3.54]
[1734449679817,1.5636,219.02,218.91,2.2838]
[1734449679818,2.2833,218.97,218.91,2.2838]
[1734449680014,2.2833,218.97,218.92,3.54]
[1734449680720,2.2835,218.95,218.92,3.54]
[1734449681117,1.5636,219.02,218.88,31.50506791]
[1734449681313,31.50506791,218.99,218.83,3.54]
[1734449681813,1.5636,219.02,218.87,2.2842]
[1734449682016,1.5636,219.02,218.85,31.50506791]
[1734449682422,1.5636,219.02,218.86,2.2843]
[1734449682819,2.2838,218.92,218.86,2.2843]
[1734449683019,1.5636,219.02,218.86,2.2843]
[1734449683323,1.5636,219.02,218.85,31.50506791]
[1734449683915,2.2831,218.99,218.89,31.50506791]
[1734449684122,5.56268098,219.07,218.9,3.54]
[1734449684419,5.56268098,219.07,218.92,2.2838]
[1734449685317,5.56268098,219.07,218.93,31.50506791]
[1734449685514,5.56268098,219.07,218.9,3.54]
[1734449685515,1.4988,219.08,218.97,31.50506791]
[1734449685715,1.4981,219.09,219.02,2.2827]
[1734449685716,3.7802,219.09,219.02,2.2827]
[1734449685923,3.7802,219.09,218.98,3.54]
[1734449685924,1.4981,219.09,218.98,3.54]
[1734449686325,1.4981,219.09,219.03,2.2826]
[1734449686519,1.504,219.16,219.03,2.2826]
[1734449686720,1.504,219.16,219.01,31.50506791]
[1734449686916,1.6068,219.21,219.05,31.50506791]
[1734449687127,2.2812,219.17,219.08,2.2821]
[1734449687325,1.6068,219.21,219.09,31.50506791]
[1734449687922,1.6068,219.21,219.06,3.54]
[1734449688323,2.2821,219.09,219.06,3.54]
[1734449688525,40.63575283,219.2,219.02,3.54]
[1734449688832,9.13068492,219.2,219.05,31.50506791]
[1734449689131,1.6068,219.21,219.09,31.50506791]
[1734449689332,1.6068,219.21,219.1,3.54]
[1734449689632,2.2811,219.18,219.13,2.2816]
[1734449690032,47.99537616,219.22,219.1,3.54]
[1734449690228,2.2813,219.16,219.1,3.54]
[1734449692035,5.35123287,219.22,219.08,3.54]
[1734449692527,5.35123287,219.22,219.06,3.54]
[1734449692737,3.54,219.21,219.06,3.54]
[1734449693034,2.282,219.09,219.06,3.54]
[1734449693231,31.50506791,219.2,219.06,3.54]
[1734449693634,3.54,219.21,219.06,3.54]
[1734449693836,35.04506791,219.21,219.06,3.54]
[1734449694136,31.50506791,219.17,218.97,31.50506791]
[1734449694327,31.50506791,219.13,218.97,31.50506791]
[1734449694531,5.0236,219.12,218.95,3.54]
[1734449695134,2.2823,219.06,218.94,5.8236]
[1734449695332,1.5413,219.11,218.94,5.8236]
[1734449695530,1.5413,219.11,218.94,3.54]
[1734449695733,2.2834,218.96,218.92,3.54]
[1734449696038,3.54,219.05,218.9,3.54]
[1734449696234,1.6053,219.04,218.9,3.54]
[1734449696431,2.2835,218.95,218.9,3.54]
[1734449696935,1.6053,219.04,218.9,3.54]
[1734449697731,1.6053,219.04,218.93,31.50506791]
[1734449697931,5.55426907,219.03,218.93,31.50506791]
[1734449698237,2.2829,219.0,218.94,2.2835]
[1734449698933,1.5413,219.11,218.93,31.50506791]
[1734449699134,1.5413,219.11,218.97,31.50506791]
[1734449699135,3.1466,219.11,218.97,31.50506791]
[1734449699336,3.1466,219.11,218.98,3.54]
[1734449699534,2.2826,219.04,218.98,5.8231]
[1734449699737,3.1466,219.11,218.98,5.8231]
[1734449699932,3.1466,219.11,218.97,31.50506791]
[1734449700138,2.2822,219.08,218.98,3.54]
[1734449700338,5.52474569,219.09,218.98,3.54]
[1734449700637,2.2832,218.98,218.93,31.50506791]
[1734449700836,5.52474569,219.09,218.93,31.50506791]
[1734449701237,2.2832,218.98,218.93,31.50506791]
[1734449701540,5.52474569,219.09,218.93,31.50506791]
[1734449701742,2.2835,218.95,218.93,31.50506791]
[1734449701939,3.54,219.05,218.89,31.50506791]
[1734449702132,3.54,219.05,218.9,3.54]
[1734449702332,5.52474569,219.09,218.9,3.54]
[1734449702544,5.52474569,219.09,218.97,31.50506791]
[1734449702738,3.92026,219.11,218.98,3.54]
[1734449703036,0.77366,219.11,219.05,31.50506791]
[1734449703232,0.77366,219.11,219.05,35.04506791]
[1734449703433,0.77366,219.11,219.01,35.04506791]
[1734449704439,0.77366,219.11,219.05,33.78746791]
[1734449704638,0.77366,219.11,219.0,31.50506791]
[1734449704839,0.77366,219.11,218.97,3.54]
[1734449705243,32.27872791,219.11,218.93,3.54]
[1734449705546,2.2834,218.96,218.93,3.54]
[1734449705737,3.54,219.06,218.92,1.5161]
[1734449705939,3.0861,219.05,218.92,1.5161]
[1734449706144,3.0861,219.05,218.9,31.50506791]
[1734449706343,34.59116791,219.05,218.91,3.54]
[1734449707141,34.59116791,219.05,218.86,31.50506791]
[1734449707438,5.45240162,219.03,218.87,9.00052844]
[1734449707939,5.45240162,219.03,218.87,3.54]
[1734449707940,31.50506791,219.01,218.87,3.54]
[1734449708139,31.50506791,219.01,218.84,3.54]
[1734449708340,31.50506791,219.01,218.6,25.07707]
[1734449708341,31.50506791,218.93,218.6,25.07707]
[1734449708639,31.50506791,218.89,218.72,31.50506791]
[1734449708839,31.50506791,218.89,218.69,1.4669]
[1734449708840,2.2856,218.75,218.7,3.54]
[1734449709946,3.54,218.81,218.69,1.4669]
[1734449710240,35.04506791,218.81,218.62,3.54]
[1734449710448,31.50506791,218.77,218.6,31.50506791]
[1734449710742,2.2867,218.64,218.6,5.60376581]
[1734449710941,3.54,218.73,218.57,1.5233]
[1734449711342,2.2866,218.66,218.58,2.2872]
[1734449711642,3.54,218.73,218.58,2.2872]
[1734449711946,3.54,218.73,218.57,6.9379685]
[1734449711947,2.287,218.62,218.57,6.9379685]
[1734449712241,3.1717,218.76,218.57,5.4146685]
[1734449712442,3.1717,218.76,218.6,31.50506791]
[1734449712745,1.5795,218.76,218.6,31.50506791]
[1734449713538,1.5795,218.76,218.57,38.44303641]
[1734449714142,2.2863,218.69,218.57,38.44303641]
[1734449714339,1.5795,218.76,218.57,38.44303641]
[1734449714739,1.5795,218.76,218.63,31.50506791]
[1734449715046,1.5795,218.76,218.64,3.54]
[1734449715241,2.2859,218.72,218.64,3.54]
[1734449715444,5.56840072,218.78,218.64,3.54]
[1734449715644,3.54,218.82,218.67,31.50506791]
[1734449715947,31.50506791,218.79,218.64,3.54]
[1734449716148,31.50506791,218.79,218.57,38.44303641]
[1734449716149,31.50506791,218.79,218.59,3.54]
[1734449716343,3.54,218.82,218.58,1.2693]
[1734449716344,31.50506791,218.75,218.58,4.8093]
[1734449716545,3.54,218.74,218.58,4.8093]
[1734449716746,3.54,218.74,218.57,1.5233]
[1734449716747,31.50506791,218.71,218.57,1.5233]
[1734449716943,31.50506791,218.71,218.54,3.54]
[1734449717144,1.5934,218.73,218.56,5.56802751]
[1734449717644,1.5934,218.73,218.54,3.54]
[1734449717842,31.50506791,218.71,218.54,3.54]
[1734449718349,31.50506791,218.71,218.53,36.96765491]
[1734449718551,2.2872,218.59,218.54,3.54]
[1734449718744,2.2872,218.59,218.53,36.96765491]
[1734449718945,35.04506791,218.67,218.52,1.5487]
[1734449719142,2.2875,218.57,218.52,1.5487]
[1734449719948,1.4806,218.66,218.53,31.50506791]
[1734449720148,1.4806,218.66,218.54,3.54]
[1734449720445,5.53672486,218.67,218.54,3.54]
[1734449720846,5.53672486,218.67,218.56,2.2875]
[1734449720847,2.2868,218.63,218.56,2.2875]
[1734449721046,3.54,218.71,218.57,31.50506791]
[1734449721550,5.35847674,218.7,218.57,31.50506791]
[1734449721943,1.5138,218.73,218.61,2.287]
[1734449722249,3.54,218.76,218.61,35.04506791]
[1734449722742,5.35902599,218.73,218.61,3.54]
[1734449724148,3.0544,218.78,218.65,31.50506791]
[1734449724351,2.2858,218.73,218.65,33.79156791]
[1734449724542,5.52608456,218.77,218.65,31.50506791]
[1734449724941,2.2858,218.73,218.66,1.4847]
[1734449725152,5.52608456,218.77,218.66,1.4847]
[1734449725546,5.52608456,218.77,218.58,1.5672]
[1734449725547,2.2861,218.7,218.58,1.5672]
[1734449725747,31.50506791,218.75,218.58,1.5672]
[1734449725949,1.498,218.74,218.58,1.5672]
[1734449726747,1.498,218.74,218.61,31.50506791]
[1734449726748,2.2863,218.69,218.61,31.50506791]
[1734449726943,9.06608456,218.77,218.62,3.54]
[1734449727143,5.52608456,218.77,218.65,31.50506791]
[1734449727649,5.52608456,218.77,218.63,1.4589]
[1734449727849,2.2859,218.72,218.66,2.2865]
[1734449728051,5.52608456,218.77,218.63,1.4589]
[1734449728647,31.50506791,218.75,218.6,3.54]
[1734449728956,2.2868,218.63,218.6,3.54]
[1734449729154,3.54,218.74,218.6,3.54]
[1734449729344,2.2863,218.68,218.62,2.2868]
[1734449729549,1.5298,218.76,218.61,31.50506791]
[1734449729751,1.5298,218.76,218.6,3.54]
[1734449729952,2.2865,218.66,218.61,2.287]
[1734449730459,1.5298,218.76,218.61,31.50506791]
[1734449731148,5.52608456,218.77,218.65,31.50506791]
[1734449731851,5.52608456,218.77,218.61,31.50506791]
[1734449732049,2.2864,218.67,218.61,33.79206791]
[1734449732349,5.52608456,218.77,218.61,31.50506791]
[1734449732552,31.50506791,218.83,218.65,31.50506791]
[1734449732756,5.37342119,218.78,218.65,31.50506791]
[1734449733554,5.37342119,218.78,218.61,31.50506791]
[1734449733856,2.2863,218.68,218.63,2.2868]
[1734449734050,5.37342119,218.78,218.61,37.00687494]
[1734449734457,5.37342119,218.78,218.66,2.2865]
[1734449734857,5.37342119,218.78,218.61,37.00687494]
[1734449735059,31.50506791,218.75,218.58,1.5672]
[1734449735356,3.54,218.74,218.58,1.5672]
[1734449735552,3.54,218.74,218.59,2.2872]
[1734449736160,2.2866,218.65,218.6,2.2871]
[1734449736654,2.2866,218.65,218.58,5.1072]
[1734449736856,2.2866,218.65,218.61,2.287]
[1734449737054,2.2868,218.64,218.58,3.5]
[1734449737261,2.2868,218.64,218.59,2.2871]
[1734449737558,2.2868,218.63,218.59,2.2871]
[1734449737862,3.54,218.74,218.58,5.7872]
[1734449738058,5.1403,218.74,218.58,3.5]
[1734449738263,31.50506791,218.71,218.56,1.5336]
[1734449738559,31.50506791,218.67,218.53,3.5]
[1734449738760,2.2873,218.59,218.53,3.5]
[1734449739662,2.287,218.61,218.53,35.00506791]
[1734449739860,3.5,218.67,218.53,35.00506791]
[1734449740163,2.2866,218.66,218.56,19.45153176]
[1734449740358,3.1438,218.7,218.6,2.2871]
[1734449740559,3.1438,218.7,218.56,19.45153176]
[1734449740860,1.6003,218.74,218.62,2.2869]
[1734449741059,3.0568,218.77,218.6,19.45153176]
[1734449741255,3.0568,218.77,218.64,19.45153176]
[1734449741452,5.37342119,218.78,218.69,2.2861]
[1734449742057,5.37342119,218.78,218.65,6.714]